[Event "Live Chess"]
[Site "Chess.com"]
[Date "2024.06.02"]
[Round "-"]
[White "r0ad_t0-gm"]
[Black "willc-h99"]
[Result "1/2-1/2"]
[WhiteElo "2271"]
[BlackElo "2611"]
[TimeControl "300"]
[EndTime "3:44:01 PDT"]
[Termination "Game drawn - timeout vs insufficient material"]

1. Nf3 {[%clk 0:04:58.9]} 1... d5 {[%clk 0:04:58.5]} 2. g3 {[%clk 0:04:57.4]}
2... Nd7 {[%clk 0:04:55.9]} 3. Bg2 {[%clk 0:04:54.7]} 3... e5 {[%clk 0:04:54.8]}
4. d3 {[%clk 0:04:54.2]} 4... Ngf6 {[%clk 0:04:53.1]} 5. O-O {[%clk 0:04:53.5]}
5... Bd6 {[%clk 0:04:51.3]} 6. e4 {[%clk 0:04:43.4]} 6... c6 {[%clk 0:04:46.1]}
7. Re1 {[%clk 0:04:41.6]} 7... O-O {[%clk 0:04:44.8]} 8. Nc3 {[%clk 0:04:40.8]}
8... d4 {[%clk 0:04:32.4]} 9. Ne2 {[%clk 0:04:39.2]} 9... c5 {[%clk 0:04:30.8]}
10. Nh4 {[%clk 0:04:36.1]} 10... Re8 {[%clk 0:04:20.8]} 11. h3 {[%clk
0:04:24.5]} 11... Rb8 {[%clk 0:04:06.5]} 12. a4 {[%clk 0:04:20.4]} 12... b6
{[%clk 0:04:01.7]} 13. Rf1 {[%clk 0:04:18.1]} 13... a6 {[%clk 0:03:54.9]} 14.
Qe1 {[%clk 0:04:13]} 14... b5 {[%clk 0:03:50.5]} 15. f4 {[%clk 0:04:10]} 15...
exf4 {[%clk 0:03:48.2]} 16. gxf4 {[%clk 0:04:07.7]} 16... Bf8 {[%clk 0:03:40.5]}
17. Qg3 {[%clk 0:03:59.9]} 17... Nh5 {[%clk 0:03:31.2]} 18. Qf2 {[%clk
0:03:47.6]} 18... g6 {[%clk 0:03:23.4]} 19. f5 {[%clk 0:03:44.7]} 19... Ne5
{[%clk 0:03:21.3]} 20. Nf4 {[%clk 0:03:39.8]} 20... Nxf4 {[%clk 0:02:54.6]} 21.
Bxf4 {[%clk 0:03:39.7]} 21... Rb7 {[%clk 0:02:36.7]} 22. Qg3 {[%clk 0:03:17.4]}
22... Bg7 {[%clk 0:02:28.9]} 23. Bg5 {[%clk 0:03:12.4]} 23... f6 {[%clk
0:02:23.1]} 24. Bd2 {[%clk 0:02:28]} 24... g5 {[%clk 0:02:20]} 25. Nf3 {[%clk
0:02:27.3]} 25... Bf8 {[%clk 0:01:57.5]} 26. Nxe5 {[%clk 0:01:58.1]} 26... Rxe5
{[%clk 0:01:56.2]} 27. Bxg5 {[%clk 0:01:42.8]} 27... Rg7 {[%clk 0:01:55.1]} 28.
Qxe5 {[%clk 0:01:38.9]} 28... Rxg5 {[%clk 0:01:35.9]} 29. Qd5+ {[%clk
0:01:22.5]} 29... Qxd5 {[%clk 0:01:35.1]} 30. exd5 {[%clk 0:01:22.4]} 30... b4
{[%clk 0:01:34.5]} 31. Kh1 {[%clk 0:01:17]} 31... Bd6 {[%clk 0:01:31.6]} 32. Be4
{[%clk 0:01:15]} 32... Bd7 {[%clk 0:01:27.8]} 33. Rg1 {[%clk 0:01:13.4]} 33...
Kf7 {[%clk 0:01:19.9]} 34. Rxg5 {[%clk 0:01:12]} 34... fxg5 {[%clk 0:01:19.3]}
35. b3 {[%clk 0:01:11.7]} 35... a5 {[%clk 0:01:10.6]} 36. Kg2 {[%clk 0:01:11.1]}
36... h6 {[%clk 0:01:08.4]} 37. Rf1 {[%clk 0:01:09.2]} 37... Kf6 {[%clk
0:01:06.9]} 38. Kf3 {[%clk 0:01:07.6]} 38... Be8 {[%clk 0:01:05.5]} 39. Ke2
{[%clk 0:01:05.5]} 39... Bh5+ {[%clk 0:01:04.6]} 40. Bf3 {[%clk 0:01:05.1]}
40... Bf7 {[%clk 0:01:04.1]} 41. Bg4 {[%clk 0:01:04.4]} 41... Bxd5 {[%clk
0:01:03]} 42. Re1 {[%clk 0:01:02.3]} 42... Bc6 {[%clk 0:00:58.3]} 43. Kf2 {[%clk
0:01:01.4]} 43... Bd7 {[%clk 0:00:57.9]} 44. Re4 {[%clk 0:00:59.7]} 44... Bc7
{[%clk 0:00:47.3]} 45. Re2 {[%clk 0:00:57.4]} 45... Bd6 {[%clk 0:00:46.5]} 46.
Kg2 {[%clk 0:00:56.4]} 46... Bc7 {[%clk 0:00:45.6]} 47. Kf3 {[%clk 0:00:55]}
47... Bd6 {[%clk 0:00:43.9]} 48. Kf2 {[%clk 0:00:52.6]} 48... Bf4 {[%clk
0:00:41.9]} 49. Re1 {[%clk 0:00:50.3]} 49... Be3+ {[%clk 0:00:37.9]} 50. Kf3
{[%clk 0:00:49.1]} 50... Bc6+ {[%clk 0:00:36.3]} 51. Kg3 {[%clk 0:00:48.2]}
51... Bf4+ {[%clk 0:00:34.3]} 52. Kf2 {[%clk 0:00:47.8]} 52... Bd7 {[%clk
0:00:32.5]} 53. Rf1 {[%clk 0:00:45.5]} 53... Be3+ {[%clk 0:00:30.7]} 54. Ke2
{[%clk 0:00:44.9]} 54... Bf4 {[%clk 0:00:30.1]} 55. Rf3 {[%clk 0:00:44.1]} 55...
Bc6 {[%clk 0:00:28.8]} 56. Rf2 {[%clk 0:00:43.2]} 56... Bd7 {[%clk 0:00:28.3]}
57. Rf1 {[%clk 0:00:42.6]} 57... Be3 {[%clk 0:00:26.7]} 58. Bf3 {[%clk
0:00:41.2]} 58... Bf4 {[%clk 0:00:23.7]} 59. Be4 {[%clk 0:00:40.8]} 59... Bxf5
{[%clk 0:00:21.9]} 60. Bxf5 {[%clk 0:00:39.8]} 60... Kxf5 {[%clk 0:00:21.8]} 61.
Kf3 {[%clk 0:00:39.2]} 61... h5 {[%clk 0:00:21.5]} 62. Rg1 {[%clk 0:00:38.1]}
62... Be3 {[%clk 0:00:20]} 63. Rg2 {[%clk 0:00:37.7]} 63... Bf4 {[%clk
0:00:19.5]} 64. h4 {[%clk 0:00:37]} 64... g4+ {[%clk 0:00:17.9]} 65. Ke2 {[%clk
0:00:36.7]} 65... Be3 {[%clk 0:00:16.3]} 66. Rg3 {[%clk 0:00:35.7]} 66... Kf4
{[%clk 0:00:15.8]} 67. Rg2 {[%clk 0:00:34.9]} 67... g3 {[%clk 0:00:15.5]} 68.
Kf1 {[%clk 0:00:28.3]} 68... Kf3 {[%clk 0:00:15.1]} 69. Re2 {[%clk 0:00:27.1]}
69... Kg4 {[%clk 0:00:14]} 70. Kg2 {[%clk 0:00:25.9]} 70... Kxh4 {[%clk
0:00:13.3]} 71. Re1 {[%clk 0:00:25.1]} 71... Kg4 {[%clk 0:00:12.7]} 72. Rh1
{[%clk 0:00:24.6]} 72... h4 {[%clk 0:00:12.3]} 73. Rh3 {[%clk 0:00:24.3]} 73...
Bf2 {[%clk 0:00:11.8]} 74. Rh1 {[%clk 0:00:23.3]} 74... Be3 {[%clk 0:00:10.7]}
75. Rf1 {[%clk 0:00:22.3]} 75... Bg5 {[%clk 0:00:10.6]} 76. Rh1 {[%clk 0:00:21]}
76... Bf6 {[%clk 0:00:09.1]} 77. Rh3 {[%clk 0:00:20.9]} 77... Bg5 {[%clk
0:00:08.4]} 78. Rh1 {[%clk 0:00:20.4]} 78... Kf4 {[%clk 0:00:08.3]} 79. Kh3
{[%clk 0:00:19.5]} 79... Ke3 {[%clk 0:00:07.9]} 80. Kg2 {[%clk 0:00:18.8]} 80...
Kd2 {[%clk 0:00:07.1]} 81. Rf1 {[%clk 0:00:18]} 81... Kxc2 {[%clk 0:00:06.7]}
82. Rf5 {[%clk 0:00:17.9]} 82... Be3 {[%clk 0:00:05.5]} 83. Rh5 {[%clk
0:00:17.8]} 83... Kxb3 {[%clk 0:00:05]} 84. Rxh4 {[%clk 0:00:17.3]} 84... Kxa4
{[%clk 0:00:04.9]} 85. Rg4 {[%clk 0:00:16.9]} 85... b3 {[%clk 0:00:04.4]} 86.
Rxg3 {[%clk 0:00:16.5]} 86... b2 {[%clk 0:00:04.3]} 87. Rg8 {[%clk 0:00:15.4]}
87... b1=Q {[%clk 0:00:04.2]} 88. Ra8 {[%clk 0:00:15]} 88... Qxd3 {[%clk
0:00:03.9]} 89. Rf8 {[%clk 0:00:13.9]} 89... Qb5 {[%clk 0:00:03.8]} 90. Rf3
{[%clk 0:00:13.5]} 90... Qb2+ {[%clk 0:00:03.4]} 91. Kg3 {[%clk 0:00:13.4]}
91... Qe2 {[%clk 0:00:03]} 92. Kg4 {[%clk 0:00:12.4]} 92... Qxf3+ {[%clk
0:00:02.9]} 93. Kxf3 {[%clk 0:00:12.3]} 93... d3 {[%clk 0:00:01.9]} 94. Kxe3
{[%clk 0:00:11.6]} 94... d2 {[%clk 0:00:01.8]} 95. Kxd2 {[%clk 0:00:11.5]} 95...
Kb3 {[%clk 0:00:01.7]} 96. Kc1 {[%clk 0:00:11]} 96... c4 {[%clk 0:00:01.3]} 97.
Kd2 {[%clk 0:00:10.9]} 97... c3+ {[%clk 0:00:01.2]} 98. Kc1 {[%clk 0:00:10.5]}
98... a4 {[%clk 0:00:01.1]} 99. Kd1 {[%clk 0:00:10.4]} 99... a3 {[%clk 0:00:01]}
100. Ke2 {[%clk 0:00:10.3]} 100... a2 {[%clk 0:00:00.6]} 101. Kd3 {[%clk
0:00:10.2]} 101... a1=Q {[%clk 0:00:00.5]} 102. Ke3 {[%clk 0:00:10.1]} 102...
Qa2 {[%clk 0:00:00.4]} 103. Ke4 {[%clk 0:00:10]} 103... Qa4+ {[%clk 0:00:00.3]}
104. Kd5 {[%clk 0:00:09.9]} 104... c2 {[%clk 0:00:00.1]} 105. Ke5 {[%clk
0:00:09.8]} 1/2-1/2

[Event "Live Chess"]
[Site "Chess.com"]
[Date "2024.06.02"]
[Round "-"]
[White "Tunyk_Vladyslav"]
[Black "MaximKovalenko83"]
[Result "1-0"]
[WhiteElo "2410"]
[BlackElo "2173"]
[TimeControl "300"]
[EndTime "3:44:12 PDT"]
[Termination "Tunyk_Vladyslav won by resignation"]

1. e4 {[%clk 0:04:56.4]} 1... c6 {[%clk 0:04:58.2]} 2. d4 {[%clk 0:04:55.3]}
2... d5 {[%clk 0:04:58.1]} 3. e5 {[%clk 0:04:54.7]} 3... Bf5 {[%clk 0:04:56.7]}
4. c4 {[%clk 0:04:53.6]} 4... e6 {[%clk 0:04:55.9]} 5. a3 {[%clk 0:04:52.8]}
5... Nd7 {[%clk 0:04:54.7]} 6. Nc3 {[%clk 0:04:51.6]} 6... Ne7 {[%clk 0:04:50]}
7. c5 {[%clk 0:04:49.8]} 7... Bg6 {[%clk 0:04:48.3]} 8. b4 {[%clk 0:04:40]} 8...
b6 {[%clk 0:04:45.6]} 9. Bb2 {[%clk 0:04:38.9]} 9... a5 {[%clk 0:04:43.4]} 10.
Bd3 {[%clk 0:04:26.8]} 10... b5 {[%clk 0:04:41.8]} 11. Nxb5 {[%clk 0:03:48.9]}
11... cxb5 {[%clk 0:04:32.4]} 12. Bxb5 {[%clk 0:03:48.8]} 12... Rb8 {[%clk
0:04:17.4]} 13. Qa4 {[%clk 0:03:45]} 13... axb4 {[%clk 0:04:11.4]} 14. axb4
{[%clk 0:03:44.9]} 14... Qc7 {[%clk 0:04:09.6]} 15. Ne2 {[%clk 0:03:27.3]} 15...
Nc8 {[%clk 0:03:43.2]} 16. Nc3 {[%clk 0:03:19.7]} 16... Be7 {[%clk 0:03:40.6]}
17. O-O {[%clk 0:03:07.3]} 17... f6 {[%clk 0:03:37.7]} 18. f4 {[%clk 0:03:05.9]}
18... fxe5 {[%clk 0:03:16.8]} 19. fxe5 {[%clk 0:03:05.8]} 19... Bg5 {[%clk
0:03:14.8]} 20. Nxd5 {[%clk 0:02:46]} 20... exd5 {[%clk 0:03:07.3]} 21. e6
{[%clk 0:02:45.3]} 21... Kd8 {[%clk 0:02:21.1]} 22. Bxd7 {[%clk 0:02:35.9]}
22... Ne7 {[%clk 0:02:17]} 23. b5 {[%clk 0:02:32.4]} 23... Be3+ {[%clk
0:01:40.5]} 24. Kh1 {[%clk 0:02:14.8]} 24... h6 {[%clk 0:01:37.5]} 25. Bc3
{[%clk 0:02:13]} 25... h5 {[%clk 0:01:26.6]} 26. Ba5 {[%clk 0:02:11.7]} 26... h4
{[%clk 0:01:25.4]} 27. Bxc7+ {[%clk 0:02:10.4]} 27... Kxc7 {[%clk 0:01:25.2]}
28. Qa7+ {[%clk 0:02:09.4]} 28... Rb7 {[%clk 0:01:21.5]} 29. b6+ {[%clk
0:02:08.9]} 1-0

[Event "Live Chess"]
[Site "Chess.com"]
[Date "2024.06.02"]
[Round "-"]
[White "Nathaniel250"]
[Black "karina55"]
[Result "0-1"]
[WhiteElo "1523"]
[BlackElo "1863"]
[TimeControl "300"]
[EndTime "3:44:12 PDT"]
[Termination "karina55 won by resignation"]

1. c4 {[%clk 0:04:57.9]} 1... e5 {[%clk 0:04:57.3]} 2. Nc3 {[%clk 0:04:56.1]}
2... Nc6 {[%clk 0:04:55.1]} 3. g3 {[%clk 0:04:53.5]} 3... g6 {[%clk 0:04:54]} 4.
Bg2 {[%clk 0:04:51.5]} 4... Bg7 {[%clk 0:04:53.6]} 5. e4 {[%clk 0:04:48.4]} 5...
Nge7 {[%clk 0:04:49.6]} 6. Nge2 {[%clk 0:04:45.1]} 6... O-O {[%clk 0:04:47.8]}
7. O-O {[%clk 0:04:44.1]} 7... a5 {[%clk 0:04:46.5]} 8. d3 {[%clk 0:04:31.1]}
8... d6 {[%clk 0:04:44.6]} 9. f4 {[%clk 0:04:21.8]} 9... Bg4 {[%clk 0:04:32]}
10. h3 {[%clk 0:04:12.8]} 10... Be6 {[%clk 0:04:28.2]} 11. g4 {[%clk 0:04:08.9]}
11... f5 {[%clk 0:04:23.7]} 12. gxf5 {[%clk 0:03:42.8]} 12... gxf5 {[%clk
0:04:20.9]} 13. fxe5 {[%clk 0:03:40.5]} 13... dxe5 {[%clk 0:04:09.8]} 14. exf5
{[%clk 0:03:38.4]} 14... Nxf5 {[%clk 0:04:04.4]} 15. Kh2 {[%clk 0:03:22.8]}
15... Nh4 {[%clk 0:03:22.9]} 16. Rg1 {[%clk 0:03:09.5]} 16... Kh8 {[%clk
0:03:06.8]} 17. Bxc6 {[%clk 0:03:06.3]} 17... bxc6 {[%clk 0:03:02.4]} 18. Ng3
{[%clk 0:02:59.5]} 18... Nf3+ {[%clk 0:02:55.2]} 19. Kh1 {[%clk 0:02:51.5]}
19... Nxg1 {[%clk 0:02:51.6]} 20. Kxg1 {[%clk 0:02:51.4]} 20... Bxh3 {[%clk
0:02:48.4]} 21. Qh5 {[%clk 0:02:25.2]} 21... Qd7 {[%clk 0:02:06.7]} 22. Kh2
{[%clk 0:02:14.9]} 22... Rf2+ {[%clk 0:02:03]} 23. Kg1 {[%clk 0:02:11.5]} 23...
Rg2+ {[%clk 0:02:01.4]} 24. Kh1 {[%clk 0:02:06.9]} 24... Rxg3 {[%clk 0:01:59.8]}
25. Ne4 {[%clk 0:02:01.3]} 25... Bg2+ {[%clk 0:01:54.9]} 26. Kg1 {[%clk
0:01:55.3]} 26... Bxe4+ {[%clk 0:01:52.6]} 0-1

[Event "Live Chess"]
[Site "Chess.com"]
[Date "2024.06.02"]
[Round "-"]
[White "matt1979"]
[Black "dereklimmo"]
[Result "0-1"]
[WhiteElo "1409"]
[BlackElo "2264"]
[TimeControl "300"]
[EndTime "3:44:38 PDT"]
[Termination "dereklimmo won by resignation"]

1. f4 {[%clk 0:04:59.1]} 1... d5 {[%clk 0:04:58.1]} 2. e3 {[%clk 0:04:57.2]}
2... Nf6 {[%clk 0:04:58]} 3. Nf3 {[%clk 0:04:56.2]} 3... c5 {[%clk 0:04:57.9]}
4. Bb5+ {[%clk 0:04:54.3]} 4... Nc6 {[%clk 0:04:57.8]} 5. O-O {[%clk 0:04:50.6]}
5... Bf5 {[%clk 0:04:57.7]} 6. d3 {[%clk 0:04:48.7]} 6... e6 {[%clk 0:04:56.8]}
7. b3 {[%clk 0:04:47.9]} 7... Qb6 {[%clk 0:04:55.9]} 8. Bxc6+ {[%clk 0:04:46.3]}
8... bxc6 {[%clk 0:04:55.4]} 9. Ne5 {[%clk 0:04:45.3]} 9... Bd6 {[%clk
0:04:54.5]} 10. Bb2 {[%clk 0:04:44.5]} 10... O-O {[%clk 0:04:53.7]} 11. h3
{[%clk 0:04:37.8]} 11... c4 {[%clk 0:04:53.2]} 12. Qe1 {[%clk 0:04:29.5]} 12...
cxd3 {[%clk 0:04:49.1]} 13. cxd3 {[%clk 0:04:27.6]} 13... Bc5 {[%clk 0:04:30]}
14. d4 {[%clk 0:04:12.4]} 14... Bb4 {[%clk 0:04:28.7]} 15. Qh4 {[%clk
0:04:05.4]} 15... Ne4 {[%clk 0:04:23.7]} 16. Nd7 {[%clk 0:04:00.1]} 16... Qc7
{[%clk 0:04:22.2]} 17. Nxf8 {[%clk 0:03:58.3]} 17... Rxf8 {[%clk 0:04:21.7]} 18.
Rf3 {[%clk 0:03:50.7]} 18... f6 {[%clk 0:04:14.9]} 19. a3 {[%clk 0:03:47.8]}
19... Ba5 {[%clk 0:04:04.6]} 20. b4 {[%clk 0:03:44.1]} 20... Bb6 {[%clk
0:04:04.2]} 21. Nc3 {[%clk 0:03:39.9]} 21... e5 {[%clk 0:04:04.1]} 22. Nxe4
{[%clk 0:03:37.8]} 22... Bxe4 {[%clk 0:03:59.3]} 23. Rg3 {[%clk 0:03:36.3]}
23... Re8 {[%clk 0:03:36.5]} 24. Rf1 {[%clk 0:03:19.4]} 24... Bd3 {[%clk
0:03:33.3]} 25. Rf2 {[%clk 0:03:13]} 25... exd4 {[%clk 0:03:16.5]} 26. exd4
{[%clk 0:03:04.1]} 26... Bf5 {[%clk 0:02:55.8]} 27. Qxf6 {[%clk 0:02:54.1]}
27... Rf8 {[%clk 0:02:50.3]} 28. Qg5 {[%clk 0:02:44.5]} 28... Qf7 {[%clk
0:02:37.2]} 29. Re2 {[%clk 0:02:34.6]} 29... Bd8 {[%clk 0:02:36.1]} 30. Qh6
{[%clk 0:02:23]} 30... Bg6 {[%clk 0:02:25]} 31. Rxg6 {[%clk 0:02:13.9]} 31...
hxg6 {[%clk 0:02:24.9]} 32. Re7 {[%clk 0:01:51.1]} 32... Bxe7 {[%clk 0:02:22.1]}
0-1

[Event "Live Chess"]
[Site "Chess.com"]
[Date "2024.06.02"]
[Round "-"]
[White "TC2304"]
[Black "Tatarinov_Maxim"]
[Result "0-1"]
[WhiteElo "2329"]
[BlackElo "2311"]
[TimeControl "300"]
[EndTime "3:44:42 PDT"]
[Termination "Tatarinov_Maxim won by resignation"]

1. d4 {[%clk 0:04:58.8]} 1... Nf6 {[%clk 0:04:58.1]} 2. Nf3 {[%clk 0:04:56.8]}
2... g6 {[%clk 0:04:56.4]} 3. h4 {[%clk 0:04:51.9]} 3... h5 {[%clk 0:04:53.5]}
4. Bg5 {[%clk 0:04:48.3]} 4... Bg7 {[%clk 0:04:52.3]} 5. c3 {[%clk 0:04:47.4]}
5... c5 {[%clk 0:04:51.3]} 6. Nbd2 {[%clk 0:04:46.2]} 6... cxd4 {[%clk
0:04:47.1]} 7. cxd4 {[%clk 0:04:45.2]} 7... Qa5 {[%clk 0:04:45.5]} 8. e3 {[%clk
0:04:38.1]} 8... Nc6 {[%clk 0:04:44.4]} 9. Bd3 {[%clk 0:04:36.6]} 9... d6 {[%clk
0:04:42.1]} 10. O-O {[%clk 0:04:33.7]} 10... Bg4 {[%clk 0:04:40.6]} 11. Qb3
{[%clk 0:04:26.4]} 11... Qb4 {[%clk 0:04:34.2]} 12. Rfc1 {[%clk 0:04:21.3]}
12... Qxb3 {[%clk 0:04:32.2]} 13. Nxb3 {[%clk 0:04:18.2]} 13... O-O {[%clk
0:04:26.2]} 14. a4 {[%clk 0:04:13]} 14... Rfc8 {[%clk 0:04:23.8]} 15. a5 {[%clk
0:03:52.6]} 15... Nb4 {[%clk 0:04:19.1]} 16. Bb5 {[%clk 0:03:41.7]} 16... Rxc1+
{[%clk 0:04:07.2]} 17. Rxc1 {[%clk 0:03:40.3]} 17... Rc8 {[%clk 0:04:07.1]} 18.
Rxc8+ {[%clk 0:03:36.2]} 18... Bxc8 {[%clk 0:04:07]} 19. Kf1 {[%clk 0:03:31]}
19... Kf8 {[%clk 0:04:04.9]} 20. Ke2 {[%clk 0:03:29.2]} 20... Ne4 {[%clk
0:03:50.2]} 21. Bf4 {[%clk 0:03:25.3]} 21... Be6 {[%clk 0:03:42.9]} 22. Nfd2
{[%clk 0:03:23.2]} 22... Nxd2 {[%clk 0:03:31.3]} 23. Nxd2 {[%clk 0:03:22.1]}
23... Nd5 {[%clk 0:03:23.4]} 24. Bg3 {[%clk 0:03:19.5]} 24... Nc7 {[%clk
0:03:19.4]} 25. Bd3 {[%clk 0:03:12.1]} 25... Bd7 {[%clk 0:03:18.1]} 26. f3
{[%clk 0:02:41.5]} 26... Bb5 {[%clk 0:03:12.8]} 27. Bxb5 {[%clk 0:02:35.6]}
27... Nxb5 {[%clk 0:03:12.7]} 28. Kd3 {[%clk 0:02:35.1]} 28... d5 {[%clk
0:03:00.2]} 29. Nb3 {[%clk 0:02:31.2]} 29... b6 {[%clk 0:02:53]} 30. a6 {[%clk
0:02:26]} 30... e6 {[%clk 0:02:50.8]} 31. Nd2 {[%clk 0:02:18.7]} 31... Ke7
{[%clk 0:02:49.8]} 32. Nb1 {[%clk 0:02:17]} 32... Kd7 {[%clk 0:02:47.3]} 33. Nc3
{[%clk 0:02:15.8]} 33... Kc6 {[%clk 0:02:45.7]} 34. Bb8 {[%clk 0:02:10.6]} 34...
Nxc3 {[%clk 0:02:37.5]} 35. bxc3 {[%clk 0:01:59]} 35... Kb5 {[%clk 0:02:36.3]}
36. Bxa7 {[%clk 0:01:58.5]} 36... Kxa6 {[%clk 0:02:34.8]} 37. Bb8 {[%clk
0:01:57.5]} 37... Bf6 {[%clk 0:02:28.8]} 38. Bg3 {[%clk 0:01:45.4]} 38... Kb5
{[%clk 0:02:27.2]} 39. Be1 {[%clk 0:01:43]} 39... Ka4 {[%clk 0:02:24.2]} 40. g4
{[%clk 0:01:35.6]} 40... Kb3 {[%clk 0:02:16.3]} 41. g5 {[%clk 0:01:34.7]} 41...
Be7 {[%clk 0:02:14.1]} 42. Bd2 {[%clk 0:01:27.6]} 42... Bd6 {[%clk 0:02:10.4]}
43. f4 {[%clk 0:01:25.4]} 43... b5 {[%clk 0:02:09.2]} 44. Bc1 {[%clk 0:01:19.9]}
44... Be7 {[%clk 0:01:51.3]} 45. Bd2 {[%clk 0:01:18.7]} 45... Kb2 {[%clk
0:01:46.4]} 46. Ke2 {[%clk 0:00:57.1]} 46... Kc2 {[%clk 0:01:43.8]} 47. Be1
{[%clk 0:00:56.5]} 47... Ba3 {[%clk 0:01:40.5]} 48. Bd2 {[%clk 0:00:55.2]} 48...
Bb2 {[%clk 0:01:39.4]} 49. e4 {[%clk 0:00:46.6]} 49... Bxc3 {[%clk 0:01:36.9]}
0-1

[Event "Live Chess"]
[Site "Chess.com"]
[Date "2024.06.02"]
[Round "-"]
[White "RockTroll"]
[Black "AlexanderMatlak"]
[Result "0-1"]
[WhiteElo "2168"]
[BlackElo "2396"]
[TimeControl "300"]
[EndTime "3:44:50 PDT"]
[Termination "AlexanderMatlak won by resignation"]

1. e4 {[%clk 0:04:57.8]} 1... c5 {[%clk 0:04:58.8]} 2. c3 {[%clk 0:04:55.9]}
2... Nf6 {[%clk 0:04:57.2]} 3. e5 {[%clk 0:04:54.9]} 3... Nd5 {[%clk 0:04:56.6]}
4. Nf3 {[%clk 0:04:54.6]} 4... Nc6 {[%clk 0:04:55.5]} 5. Bc4 {[%clk 0:04:54.2]}
5... Nb6 {[%clk 0:04:53.5]} 6. Bb3 {[%clk 0:04:53.6]} 6... c4 {[%clk 0:04:52.9]}
7. Bc2 {[%clk 0:04:53]} 7... Qc7 {[%clk 0:04:52.2]} 8. O-O {[%clk 0:04:52.3]}
8... Nxe5 {[%clk 0:04:50.8]} 9. Nxe5 {[%clk 0:04:51.9]} 9... Qxe5 {[%clk
0:04:50.7]} 10. Re1 {[%clk 0:04:51.5]} 10... Qc7 {[%clk 0:04:50]} 11. a4 {[%clk
0:04:50.8]} 11... e6 {[%clk 0:04:49]} 12. d3 {[%clk 0:04:49]} 12... Be7 {[%clk
0:04:44.1]} 13. a5 {[%clk 0:04:46.3]} 13... cxd3 {[%clk 0:04:32.9]} 14. axb6
{[%clk 0:04:44.7]} 14... dxc2 {[%clk 0:04:31.6]} 15. bxc7 {[%clk 0:04:40.1]}
15... cxd1=Q {[%clk 0:04:30.5]} 16. Rxd1 {[%clk 0:04:39.7]} 16... d5 {[%clk
0:04:24.5]} 17. Be3 {[%clk 0:04:38.4]} 17... Kd7 {[%clk 0:04:04.1]} 18. Bxa7
{[%clk 0:04:32]} 18... Bc5 {[%clk 0:03:57.9]} 0-1

[Event "Live Chess"]
[Site "Chess.com"]
[Date "2024.06.02"]
[Round "-"]
[White "ameetghasi100"]
[Black "juniortay"]
[Result "1-0"]
[WhiteElo "2778"]
[BlackElo "2375"]
[TimeControl "300"]
[EndTime "3:45:00 PDT"]
[Termination "ameetghasi100 won by checkmate"]

1. d4 {[%clk 0:04:58.9]} 1... d5 {[%clk 0:04:58.6]} 2. c3 {[%clk 0:04:58.8]}
2... c5 {[%clk 0:04:57.4]} 3. Nf3 {[%clk 0:04:58.7]} 3... e6 {[%clk 0:04:56.6]}
4. e3 {[%clk 0:04:56.9]} 4... Nc6 {[%clk 0:04:55.1]} 5. Bd3 {[%clk 0:04:56.4]}
5... f5 {[%clk 0:04:53.7]} 6. h3 {[%clk 0:04:53.4]} 6... Nf6 {[%clk 0:04:52.5]}
7. g4 {[%clk 0:04:45.1]} 7... Ne4 {[%clk 0:04:51.4]} 8. gxf5 {[%clk 0:04:41.7]}
8... exf5 {[%clk 0:04:50.4]} 9. c4 {[%clk 0:04:39.4]} 9... cxd4 {[%clk
0:04:45.7]} 10. cxd5 {[%clk 0:04:36.6]} 10... Qxd5 {[%clk 0:04:43.1]} 11. exd4
{[%clk 0:04:35.6]} 11... Bb4+ {[%clk 0:04:39.9]} 12. Kf1 {[%clk 0:04:34.7]}
12... O-O {[%clk 0:04:36.7]} 13. a3 {[%clk 0:04:31.6]} 13... Ba5 {[%clk
0:04:31.2]} 14. b4 {[%clk 0:04:19.5]} 14... Bb6 {[%clk 0:04:29.8]} 15. b5 {[%clk
0:04:19]} 15... Na5 {[%clk 0:04:26.5]} 16. Bb2 {[%clk 0:04:11.3]} 16... Bd7
{[%clk 0:04:23.7]} 17. a4 {[%clk 0:04:07.3]} 17... Rac8 {[%clk 0:04:21.4]} 18.
Rg1 {[%clk 0:04:04.3]} 18... Nc4 {[%clk 0:03:47.6]} 19. Bc1 {[%clk 0:03:52.1]}
19... f4 {[%clk 0:03:27]} 20. Rg4 {[%clk 0:02:56.6]} 20... Bxg4 {[%clk 0:03:25]}
21. hxg4 {[%clk 0:02:56.5]} 21... Ne3+ {[%clk 0:03:04.8]} 22. fxe3 {[%clk
0:02:46.4]} 22... fxe3 {[%clk 0:03:03.8]} 23. Bxe3 {[%clk 0:02:45]} 23... Rxf3+
{[%clk 0:02:36.5]} 24. Qxf3 {[%clk 0:02:42.5]} 24... Rf8 {[%clk 0:02:33]} 25.
Bf4 {[%clk 0:02:41.2]} 25... Nd2+ {[%clk 0:02:30]} 26. Nxd2 {[%clk 0:02:39.6]}
26... Qxd4 {[%clk 0:02:18.6]} 27. Bc4+ {[%clk 0:02:06.1]} 27... Kh8 {[%clk
0:02:17.7]} 28. Re1 {[%clk 0:01:37.2]} 28... Qg1+ {[%clk 0:02:02]} 29. Ke2
{[%clk 0:01:35.5]} 29... Re8+ {[%clk 0:01:47.1]} 30. Ne4 {[%clk 0:01:31.8]}
30... Qd4 {[%clk 0:01:40.1]} 31. Bd3 {[%clk 0:01:29.1]} 31... Rf8 {[%clk
0:01:00.4]} 32. Rd1 {[%clk 0:00:38]} 32... Bc7 {[%clk 0:00:47.9]} 33. Bxc7
{[%clk 0:00:36.1]} 33... Rxf3 {[%clk 0:00:46.2]} 34. Kxf3 {[%clk 0:00:36]} 34...
Qxa4 {[%clk 0:00:39.1]} 35. Rd2 {[%clk 0:00:34.9]} 35... Kg8 {[%clk 0:00:28.5]}
36. Bg3 {[%clk 0:00:34.3]} 36... Kf7 {[%clk 0:00:21.4]} 37. g5 {[%clk
0:00:31.7]} 37... Qb4 {[%clk 0:00:14.1]} 38. Re2 {[%clk 0:00:29.5]} 38... Qd4
{[%clk 0:00:10.5]} 39. Nd6+ {[%clk 0:00:28.2]} 39... Kf8 {[%clk 0:00:07.6]} 40.
Re8# {[%clk 0:00:24.1]} 1-0